bitfinex/quotes_BTCUSD_20250616
["timestamp","ask_amount","ask_price","bid_price","bid_amount"]
[1750087250134,0.7869431,107620.0,107610.0,0.42444569]
[1750087250354,0.59181183,107620.0,107610.0,0.4337379]
[1750087250569,0.01858148,107630.0,107620.0,0.22300505]
[1750087250988,0.01858148,107630.0,107620.0,0.23820505]
[1750087251423,0.00929039,107630.0,107620.0,0.22891327]
[1750087251635,0.00929039,107630.0,107620.0,0.24491327]
[1750087252055,0.01958096,107630.0,107620.0,0.24491327]
[1750087252467,0.01029039,107630.0,107620.0,0.24953327]
[1750087252675,0.01958087,107630.0,107620.0,0.24953327]
[1750087253223,0.02887144,107630.0,107620.0,0.24953327]
[1750087253865,0.001,107630.0,107620.0,0.24953327]
[1750087255229,0.001,107630.0,107620.0,0.83205367]
[1750087255879,0.001,107630.0,107620.0,0.92829543]
[1750087256313,1.28873982,107660.0,107650.0,0.2136543]
[1750087256530,1.38950158,107660.0,107650.0,0.4084543]
[1750087256741,1.20373157,107660.0,107650.0,0.4084543]
[1750087257613,1.19644376,107660.0,107650.0,0.4084543]
[1750087257828,1.18715535,107660.0,107650.0,0.4084543]
[1750087258038,1.38221377,107660.0,107650.0,0.4084543]
[1750087258263,1.20144376,107660.0,107650.0,0.4084543]
[1750087258690,1.12624519,107660.0,107650.0,0.4084543]
[1750087258946,1.11695678,107660.0,107650.0,0.4084543]
[1750087259578,1.12624519,107660.0,107650.0,0.4084543]
[1750087260231,1.12172519,107660.0,107650.0,0.4084543]
[1750087260455,0.02557579,107660.0,107650.0,0.4084543]
[1750087260668,0.03486394,107660.0,107650.0,0.4084143]
[1750087262567,0.01628781,107660.0,107650.0,0.4130043]
[1750087262777,0.01628772,107660.0,107650.0,0.4129643]
[1750087263384,0.01628772,107660.0,107650.0,0.20895555]
[1750087263613,0.64127231,107660.0,107650.0,0.4129643]
[1750087263837,0.62898399,107660.0,107650.0,0.4129643]
[1750087264087,0.64756029,107660.0,107650.0,0.4129643]
[1750087264303,0.04215157,107660.0,107650.0,0.4129643]
[1750087264527,0.63396029,107660.0,107650.0,0.2182443]
[1750087264748,0.81044327,107660.0,107650.0,0.41296448]
[1750087264968,0.62467326,107660.0,107650.0,0.42225323]
[1750087265442,0.81044327,107660.0,107650.0,0.41296448]
[1750087265665,0.81044327,107660.0,107650.0,0.42225332]
[1750087266304,0.81765529,107660.0,107650.0,0.41292448]
[1750087266538,0.81765529,107660.0,107650.0,0.42221332]
[1750087267401,0.63188528,107660.0,107650.0,0.43150207]
[1750087267590,0.61538528,107660.0,107650.0,0.43150207]
[1750087268018,0.60609678,107660.0,107650.0,0.43150207]
[1750087268230,0.60609627,107660.0,107650.0,0.43150207]
[1750087268456,0.61538459,107660.0,107650.0,0.43150207]
[1750087268886,0.8269431,107660.0,107650.0,0.43150207]
[1750087269180,0.8269431,107660.0,107650.0,0.41292448]
[1750087269718,0.63188459,107660.0,107650.0,0.43150207]
[1750087269923,0.60609627,107660.0,107650.0,0.43150207]
[1750087270133,0.61538451,107660.0,107650.0,0.43150207]
[1750087270356,0.81973125,107660.0,107650.0,0.43150207]
[1750087270569,0.81973194,107660.0,107650.0,0.43150207]
[1750087270775,0.81973194,107660.0,107650.0,0.22753332]
[1750087270990,0.82574388,107660.0,107650.0,0.41292448]
[1750087271522,0.82574388,107660.0,107650.0,0.21824448]
[1750087271736,0.81645564,107660.0,107650.0,0.41292448]
[1750087272024,0.81645564,107660.0,107650.0,0.42221332]
[1750087272242,0.63068563,107660.0,107650.0,0.43150207]
[1750087272454,0.62139678,107660.0,107650.0,0.43150207]
[1750087272660,0.61538451,107660.0,107650.0,0.43150207]
[1750087272903,0.61538442,107660.0,107650.0,0.43150207]
[1750087273331,0.6060961,107660.0,107650.0,0.43150207]
[1750087273550,0.61538416,107660.0,107650.0,0.43150207]
[1750087274872,0.005,107660.0,107650.0,0.46320207]
[1750087277154,0.01428781,107660.0,107650.0,0.46320207]
[1750087277373,0.01428772,107660.0,107650.0,0.46320207]
[1750087277578,0.005,107660.0,107650.0,0.46320207]
[1750087280467,0.005,107660.0,107650.0,0.26852207]
[1750087280673,0.005,107660.0,107650.0,0.46316207]
[1750087280912,0.005,107660.0,107650.0,1.16192423]
[1750087281749,0.003,107660.0,107650.0,1.16192423]
[1750087282835,0.60109247,107680.0,107670.0,0.21361463]
[1750087283042,0.01857207,107680.0,107670.0,0.36757463]
[1750087283506,0.0163,107690.0,107680.0,0.21359504]
[1750087283716,1.31667535,107700.0,107690.0,0.21357494]
[1750087283927,1.7579897,107700.0,107690.0,0.35824964]
[1750087284353,1.74870517,107700.0,107690.0,0.34896408]
[1750087284643,1.73942021,107700.0,107690.0,0.15396]
[1750087284851,1.73942021,107700.0,107690.0,0.33967826]
[1750087285062,1.73942021,107700.0,107690.0,0.35824999]
[1750087285276,1.74142021,107700.0,107690.0,0.35824999]
[1750087285495,1.74142021,107700.0,107690.0,0.15396]
[1750087285715,1.73942021,107700.0,107690.0,0.15396]
[1750087286138,1.74142021,107700.0,107690.0,0.15396]
[1750087286345,1.74442021,107700.0,107690.0,0.15396]
[1750087286564,0.21140417,107690.0,107680.0,0.20430811]
[1750087286781,0.79392457,107690.0,107680.0,0.39886811]
[1750087286998,0.60820605,107690.0,107680.0,0.4148815]
[1750087287416,0.60820605,107690.0,107680.0,0.4194715]
[1750087288075,0.03497069,107690.0,107680.0,0.42867203]
[1750087288290,0.01857086,107690.0,107680.0,0.42867203]
[1750087288526,0.61037708,107690.0,107680.0,0.4194715]
[1750087288747,0.62697708,107690.0,107680.0,0.4194715]
[1750087288969,0.82198056,107690.0,107680.0,0.42875826]
[1750087289178,0.6362623,107690.0,107680.0,0.43804443]
[1750087289390,0.6372623,107690.0,107680.0,0.43804443]
[1750087290293,0.61137648,107690.0,107680.0,0.43804443]
[1750087290539,0.62066222,107690.0,107680.0,0.43804443]
[1750087290743,0.63666222,107690.0,107680.0,0.43804443]
[1750087291071,0.83166639,107690.0,107680.0,0.42203104]
[1750087291293,0.82238117,107690.0,107680.0,0.41274487]
[1750087291519,0.22030827,107680.0,107670.0,0.20438553]
[1750087291743,0.01857449,107670.0,107660.0,0.4583343]
[1750087291963,0.60109455,107670.0,107660.0,0.48619875]
[1750087292223,0.02786152,107670.0,107660.0,0.68067875]
[1750087292451,0.00928703,107670.0,107660.0,0.68067875]
[1750087292663,0.63219308,107680.0,107670.0,0.21361488]
[1750087292878,0.84578786,107680.0,107670.0,0.22290191]
[1750087293097,0.84578864,107680.0,107670.0,0.22290191]
[1750087293689,0.84578864,107680.0,107670.0,0.22390191]
[1750087293906,0.64147924,107680.0,107670.0,0.23333101]
[1750087294108,0.62737924,107680.0,107670.0,0.23233101]
[1750087294310,0.64595226,107680.0,107670.0,0.22290191]
[1750087294477,0.61137898,107680.0,107670.0,0.41738191]
[1750087294693,0.62066549,107680.0,107670.0,0.41738191]
[1750087295487,0.62995209,107680.0,107670.0,0.41738191]
[1750087295693,0.04743169,107680.0,107670.0,0.41738191]
[1750087296977,0.06403169,107680.0,107670.0,0.41738191]
[1750087297200,0.64655209,107680.0,107670.0,0.41738191]
[1750087297416,0.64655209,107680.0,107670.0,0.42236191]
[1750087297999,0.63726549,107680.0,107670.0,0.42236191]
[1750087298208,0.64655209,107680.0,107670.0,0.42236191]
[1750087299384,0.64655278,107680.0,107670.0,0.42236191]
[1750087299787,0.83228829,107680.0,107670.0,0.42236191]
[1750087300223,0.64655278,107680.0,107670.0,0.42236191]
[1750087300423,0.6372661,107680.0,107670.0,0.42236191]
[1750087300644,0.64655278,107680.0,107670.0,0.42236191]
[1750087300859,0.61869299,107680.0,107670.0,0.42236191]
[1750087301131,0.61869264,107680.0,107670.0,0.42236191]
[1750087301351,0.6001204,107680.0,107670.0,0.49868578]
[1750087301573,0.001,107680.0,107670.0,0.45526191]
[1750087303061,0.01028608,107680.0,107670.0,0.45526191]
[1750087303266,0.01957242,107680.0,107670.0,0.42236191]
[1750087303476,0.62727933,107680.0,107670.0,0.41738191]
[1750087304166,0.001,107680.0,107670.0,0.43328191]
[1750087304383,0.001,107680.0,107670.0,0.44938191]
[1750087304592,0.001,107680.0,107670.0,1.03190231]
[1750087305262,0.001,107680.0,107670.0,1.14814407]
[1750087305502,0.001,107680.0,107670.0,1.14810407]
[1750087306596,1.12390033,107700.0,107690.0,0.21357494]
[1750087306811,1.12390033,107700.0,107690.0,0.36741494]
[1750087307023,1.13318512,107700.0,107690.0,0.36741494]
[1750087307228,1.13318572,107700.0,107690.0,0.36741494]
[1750087307350,0.63560085,107700.0,107690.0,0.36741494]
[1750087307771,0.63860085,107700.0,107690.0,0.36741494]
[1750087307970,0.64060085,107700.0,107690.0,0.36741494]
[1750087308571,0.64988572,107700.0,107690.0,0.36741494]
[1750087308779,0.64988572,107700.0,107690.0,0.43006366]
[1750087308780,0.02094198,107700.0,107690.0,0.43006366]
[1750087309204,0.00514198,107700.0,107690.0,0.43006366]
[1750087310485,0.01442642,107700.0,107690.0,0.43006366]
[1750087310975,0.01442634,107700.0,107690.0,0.43006366]
[1750087311186,0.00514198,107700.0,107690.0,0.43006366]
[1750087311420,0.01442634,107700.0,107690.0,0.43006366]
[1750087311644,0.03961096,107700.0,107690.0,0.43006366]
[1750087311849,0.66212102,107700.0,107690.0,0.41726033]
[1750087312150,0.07960053,107700.0,107690.0,0.41726033]
[1750087312348,0.63863136,107700.0,107690.0,0.41726033]
[1750087312743,0.64791615,107700.0,107690.0,0.41726033]
[1750087312991,0.64791615,107700.0,107690.0,0.47898495]
[1750087312992,0.63863136,107700.0,107690.0,0.47898495]
[1750087313200,0.00514198,107700.0,107690.0,0.47898495]
[1750087313407,0.00514198,107700.0,107690.0,0.51128495]
[1750087313821,0.00514198,107700.0,107690.0,1.21004711]
[1750087315556,0.00014198,107700.0,107690.0,1.21004711]
[1750087315987,0.00114198,107700.0,107690.0,0.62752671]
[1750087316622,0.00114198,107700.0,107690.0,1.21004711]
[1750087316830,0.00014198,107700.0,107690.0,1.22458796]
[1750087317038,0.00014198,107700.0,107690.0,1.76458796]
[1750087317249,0.00014198,107700.0,107690.0,1.76658796]
[1750087317450,0.00014198,107700.0,107690.0,1.77156796]
[1750087318476,0.00014198,107700.0,107690.0,1.77056796]
[1750087318678,0.00014198,107700.0,107690.0,1.76956796]
[1750087318860,0.00014198,107700.0,107690.0,1.77156796]
[1750087319088,0.00014198,107700.0,107690.0,1.77356796]
[1750087319287,0.00014198,107700.0,107690.0,1.57716796]
[1750087319416,0.00014198,107700.0,107690.0,1.76952796]
[1750087319615,0.00014198,107700.0,107690.0,1.77352796]
[1750087320074,0.00014198,107700.0,107690.0,1.77752796]
[1750087320498,0.00014198,107700.0,107690.0,1.36316796]
[1750087320698,0.00014198,107700.0,107690.0,0.32710209]
[1750087320902,0.00014198,107700.0,107690.0,0.59951209]
[1750087321103,0.00014198,107700.0,107690.0,0.79387209]
[1750087321539,0.59776238,107700.0,107690.0,0.49838033]
[1750087321965,0.60704665,107700.0,107690.0,0.69266033]
[1750087322379,0.59776238,107700.0,107690.0,0.68466033]
[1750087322593,0.60704665,107700.0,107690.0,0.68466033]
[1750087322799,0.65968528,107700.0,107690.0,0.49238033]
[1750087323010,0.65968528,107700.0,107690.0,0.68666033]
[1750087323011,0.65502101,107700.0,107690.0,0.68666033]
[1750087323216,0.65502119,107700.0,107690.0,0.22486033]
[1750087323422,0.65502119,107700.0,107690.0,0.68666033]
[1750087323626,0.65502119,107700.0,107690.0,0.68566033]
[1750087323805,0.64573614,107700.0,107690.0,0.67637503]
[1750087324028,0.66430615,107700.0,107690.0,0.67637503]
[1750087324399,1.42324313,107700.0,107690.0,0.26852]
[1750087324599,1.40467381,107700.0,107690.0,0.30804]
[1750087324803,0.82315341,107700.0,107690.0,0.65676417]
[1750087325255,1.40567381,107700.0,107690.0,0.46176]
[1750087325479,0.82315341,107700.0,107690.0,0.46176]
[1750087325684,0.82315341,107700.0,107690.0,0.65676417]
[1750087325889,0.82315341,107700.0,107690.0,0.66604982]
[1750087326095,0.82315341,107700.0,107690.0,0.65676417]
[1750087326311,0.8045834,107700.0,107690.0,0.65676417]
[1750087326798,0.8045834,107700.0,107690.0,0.46176]
[1750087327017,0.81400978,107700.0,107690.0,0.46176]
[1750087327223,0.23148938,107700.0,107690.0,0.46176]
[1750087327440,0.81400978,107700.0,107690.0,0.46176]
[1750087328562,1.49277194,107700.0,107690.0,0.46176]
[1750087328771,1.49277194,107700.0,107690.0,0.26752]
[1750087328986,1.49277194,107700.0,107690.0,0.46176]
[1750087330046,1.83277194,107700.0,107690.0,0.46176]
[1750087331328,1.83277194,107700.0,107690.0,0.26752]
[1750087331536,1.92892116,107700.0,107690.0,0.26752]
[1750087331754,2.08264116,107700.0,107690.0,0.26752]
[1750087331972,2.08264116,107700.0,107690.0,0.30804]
[1750087331973,2.09718201,107700.0,107690.0,0.30804]
[1750087333281,0.66773114,107700.0,107690.0,0.30804]
[1750087333504,1.40397154,107700.0,107690.0,0.30804]
[1750087333924,1.98649194,107700.0,107690.0,0.30804]
[1750087335074,1.83277194,107700.0,107690.0,0.50304417]
[1750087335513,1.83277194,107700.0,107690.0,0.30804]
[1750087336212,1.84205699,107700.0,107690.0,0.49375826]
[1750087336433,1.84205699,107700.0,107690.0,0.30804]
[1750087336640,1.25953659,107700.0,107690.0,0.30804]
[1750087336857,1.25953659,107700.0,107690.0,0.64747826]
[1750087337126,1.25953659,107700.0,107690.0,0.46176]
[1750087337625,1.25953659,107700.0,107690.0,0.64747826]
[1750087337849,0.67701619,107700.0,107690.0,0.65676417]
[1750087338071,1.24549021,107700.0,107690.0,0.66604999]
[1750087338978,1.24549021,107700.0,107690.0,0.67533573]
[1750087339252,1.254775,107700.0,107690.0,0.68462138]
[1750087339895,1.254775,107700.0,107690.0,0.67533573]
[1750087340108,1.254775,107700.0,107690.0,0.66604999]
[1750087340321,1.254775,107700.0,107690.0,0.67533573]
[1750087340538,1.254775,107700.0,107690.0,0.68462129]
[1750087340756,1.254775,107700.0,107690.0,0.67533573]
[1750087341004,1.24549021,107700.0,107690.0,0.65676417]
[1750087341230,1.83263061,107700.0,107690.0,0.46176]
[1750087343290,1.92877983,107700.0,107690.0,0.46176]
[1750087343935,1.83263061,107700.0,107690.0,0.46176]
[1750087345566,1.82334556,107700.0,107690.0,0.46176]
[1750087345827,1.23620516,107700.0,107690.0,0.65676417]
[1750087346456,1.24082516,107700.0,107690.0,0.65676417]
[1750087347524,1.23620516,107700.0,107690.0,0.46176]
[1750087347726,1.81872556,107700.0,107690.0,0.46176]
[1750087347934,1.91703904,107700.0,107690.0,0.46176]
[1750087348160,1.82334556,107700.0,107690.0,0.46176]
[1750087348589,1.82334556,107700.0,107690.0,0.64747826]
[1750087348814,1.82334556,107700.0,107690.0,0.46176]
[1750087349278,1.83729531,107700.0,107690.0,0.46176]
[1750087349526,0.64746955,107700.0,107690.0,0.64747826]
[1750087349775,0.36899583,107700.0,107690.0,0.67992486]
[1750087350017,0.36899583,107700.0,107690.0,0.71142486]
[1750087350218,0.95151623,107700.0,107690.0,0.71142486]
[1750087351738,1.13721725,107700.0,107690.0,0.676554]
[1750087351954,1.71686867,107700.0,107690.0,0.26752]
[1750087352171,1.83308043,107700.0,107690.0,0.26752]
[1750087352387,1.83308043,107700.0,107690.0,0.46168]
[1750087352804,1.83308043,107700.0,107690.0,0.308]
[1750087353011,1.25058294,107700.0,107690.0,0.308]
[1750087354809,0.66803963,107700.0,107690.0,0.308]
[1750087355035,1.25058294,107700.0,107690.0,0.308]
[1750087356918,1.25058294,107700.0,107690.0,0.26752]
[1750087357159,1.25058294,107700.0,107690.0,0.308]
[1750087358586,0.66803963,107700.0,107690.0,0.308]
[1750087358800,1.25058294,107700.0,107690.0,0.308]
[1750087361136,1.13437118,107700.0,107690.0,0.50300408]
[1750087361348,1.13437118,107700.0,107690.0,0.308]
[1750087361580,1.15484118,107700.0,107690.0,0.308]
[1750087362235,1.25108294,107700.0,107690.0,0.308]
[1750087362460,1.24641294,107700.0,107690.0,0.49371826]
[1750087362683,1.23348261,107700.0,107690.0,0.51687964]
[1750087363147,1.23348261,107700.0,107690.0,0.50759408]
[1750087363371,1.24069799,107700.0,107690.0,0.308]
[1750087363590,1.26176799,107700.0,107690.0,0.308]
[1750087364127,1.26176799,107700.0,107690.0,0.26752]
[1750087364378,1.28402562,107700.0,107690.0,0.308]
[1750087364638,1.43770562,107700.0,107690.0,0.26752]
[1750087364979,1.43770562,107700.0,107690.0,0.308]
[1750087365190,1.45224647,107700.0,107690.0,0.308]
[1750087365378,1.54839569,107700.0,107690.0,0.308]
[1750087366753,1.45224647,107700.0,107690.0,0.308]
[1750087369869,1.45224647,107700.0,107690.0,0.26752]
[1750087370085,1.45224647,107700.0,107690.0,0.308]
[1750087370752,0.86970316,107700.0,107690.0,0.308]
[1750087370971,1.45224647,107700.0,107690.0,0.308]
[1750087372095,1.43303562,107700.0,107690.0,0.308]
[1750087372341,1.41663562,107700.0,107690.0,0.308]
[1750087372539,1.24069799,107700.0,107690.0,0.308]
[1750087372765,1.22419799,107700.0,107690.0,0.49371826]
[1750087372993,0.64165425,107700.0,107690.0,0.70095956]
[1750087373736,0.64165425,107700.0,107690.0,0.67055956]
[1750087373956,0.55469754,107700.0,107690.0,0.69634495]
[1750087374177,0.55469754,107700.0,107690.0,0.71294495]
[1750087374976,1.13710229,107700.0,107690.0,0.71294495]
[1750087375200,0.94211571,107700.0,107690.0,0.72223025]
[1750087375422,0.0289954,107700.0,107690.0,0.72223025]
[1750087375638,0.60211553,107700.0,107690.0,0.72223025]
[1750087375848,0.59283109,107700.0,107690.0,0.72223025]
[1750087376061,0.60211571,107700.0,107690.0,0.72223025]
[1750087376280,0.61140058,107700.0,107690.0,0.72223025]
[1750087376718,0.80638656,107700.0,107690.0,0.66848826]
[1750087376932,0.7971022,107700.0,107690.0,0.69634556]
[1750087377417,0.78781758,107700.0,107690.0,0.69634573]
[1750087377638,0.78781758,107700.0,107690.0,0.69638573]
[1750087377841,0.78781758,107700.0,107690.0,0.70567138]
[1750087378059,0.78781758,107700.0,107690.0,0.71495694]
[1750087378279,0.78781758,107700.0,107690.0,0.69841694]
[1750087379609,0.78781758,107700.0,107690.0,0.69841651]
[1750087379849,0.60211656,107700.0,107690.0,0.71411564]
[1750087380074,0.6114005,107700.0,107690.0,0.72981564]
[1750087380292,0.58354673,107700.0,107690.0,0.72981564]
[1750087380501,0.01042642,107700.0,107690.0,0.72981564]
[1750087380923,0.59283117,107700.0,107690.0,0.72981564]
[1750087381347,0.61140049,107700.0,107690.0,0.72981564]
[1750087381575,0.62068536,107700.0,107690.0,0.72981564]
[1750087381783,0.81567134,107700.0,107690.0,0.72981564]
[1750087381994,0.79710237,107700.0,107690.0,0.67984495]
[1750087382843,0.79710237,107700.0,107690.0,0.71401564]
[1750087383042,0.80638742,107700.0,107690.0,0.71401564]
[1750087383250,0.80638742,107700.0,107690.0,0.66596947]
[1750087383473,0.81290263,107700.0,107690.0,0.64755826]
[1750087383688,0.81290263,107700.0,107690.0,0.65684391]
[1750087384177,0.80361776,107700.0,107690.0,0.656844]
[1750087384418,0.78781776,107700.0,107690.0,0.656844]
[1750087384655,0.78781776,107700.0,107690.0,0.64751826]
[1750087384887,1.36093755,107700.0,107690.0,0.26752]
[1750087385116,1.39313755,107700.0,107690.0,0.46176]
[1750087386323,1.39313755,107700.0,107690.0,0.64747826]
[1750087386528,1.39313755,107700.0,107690.0,0.46176]
[1750087387358,0.7943328,107700.0,107690.0,0.65676408]
[1750087388211,0.78504775,107700.0,107690.0,0.46176]
[1750087388619,0.78504775,107700.0,107690.0,0.64747826]
[1750087388840,0.78504775,107700.0,107690.0,0.65676417]
[1750087389045,0.78504775,107700.0,107690.0,0.46176]
[1750087389260,0.78504775,107700.0,107690.0,0.64747826]
[1750087389482,0.78504775,107700.0,107690.0,0.46176]
[1750087389691,0.80024775,107700.0,107690.0,0.46176]
[1750087389901,0.78504775,107700.0,107690.0,0.656764]
[1750087390114,0.78504775,107700.0,107690.0,0.65676417]
[1750087390777,0.78504775,107700.0,107690.0,0.66604999]
[1750087391199,0.78504775,107700.0,107690.0,0.46176]
[1750087391407,0.78504775,107700.0,107690.0,0.65676417]
[1750087392041,1.3674525,107700.0,107690.0,0.46176]
[1750087392500,1.3674525,107700.0,107690.0,0.64747826]
[1750087392794,1.3674525,107700.0,107690.0,0.46176]
[1750087393008,1.3831525,107700.0,107690.0,0.46176]
[1750087393219,1.3878825,107700.0,107690.0,0.46176]
[1750087393628,1.82412426,107700.0,107690.0,0.46172]
[1750087394072,1.82412426,107700.0,107690.0,0.26752]
[1750087394507,1.82412426,107700.0,107690.0,0.30804]
[1750087396349,2.00570526,107700.0,107690.0,0.30804]
[1750087397806,1.85202526,107700.0,107690.0,0.30804]
[1750087398006,0.68248576,107700.0,107690.0,0.30804]
[1750087398214,1.22128951,107700.0,107690.0,0.30804]
[1750087400944,1.22128951,107700.0,107690.0,0.31284]
[1750087401500,1.22128951,107700.0,107690.0,0.30804]
[1750087401912,1.82009426,107700.0,107690.0,0.30804]
[1750087402115,1.82482426,107700.0,107690.0,0.30804]
[1750087402569,1.82482426,107700.0,107690.0,0.30808]
[1750087404163,1.8470604,107700.0,107690.0,0.30808]
[1750087404711,1.8470604,107700.0,107690.0,0.26752]
[1750087404927,2.11143047,107700.0,107690.0,0.26752]
[1750087405134,3.23860839,107700.0,107690.0,0.26752]
[1750087405374,2.70127596,107700.0,107690.0,0.26752]
[1750087405672,2.62743711,107700.0,107690.0,0.26752]
[1750087405829,2.60520097,107700.0,107690.0,0.26752]
[1750087406247,2.60420097,107700.0,107690.0,0.26752]
[1750087406476,2.60620097,107700.0,107690.0,0.26752]
[1750087406716,2.58349433,107700.0,107690.0,0.26752]
[1750087407048,0.226604,107690.0,107680.0,0.04056]
[1750087407278,1.06366051,107690.0,107680.0,0.04056]
[1750087407912,0.21363421,107660.0,107650.0,0.24116503]
[1750087408175,0.79603896,107660.0,107650.0,0.43540503]
[1750087408702,0.8053272,107660.0,107650.0,0.43540555]
[1750087409070,0.8053272,107660.0,107650.0,0.44469448]
[1750087409292,0.61955719,107660.0,107650.0,0.46327207]
[1750087409969,0.60098045,107660.0,107650.0,0.46827207]
[1750087410405,0.037152,107660.0,107650.0,0.46827207]
[1750087410625,0.04644032,107660.0,107650.0,0.46827207]
[1750087411394,0.62884507,107660.0,107650.0,0.46827207]
[1750087411903,0.81461577,107660.0,107650.0,0.46827207]
[1750087412123,0.62884576,107660.0,107650.0,0.46827207]
[1750087412425,0.63835308,107660.0,107650.0,0.46827207]
[1750087413299,0.61026903,107660.0,107650.0,0.46827207]
[1750087414477,0.80532736,107660.0,107650.0,0.46827207]
[1750087414700,0.61026937,107660.0,107650.0,0.45898332]
[1750087414930,0.61026937,107660.0,107650.0,0.46827207]
[1750087416590,0.80532779,107660.0,107650.0,0.46827207]
[1750087417074,0.80295149,107660.0,107650.0,0.19916]
[1750087417328,0.89919325,107660.0,107650.0,0.19916]
[1750087417990,0.9086508,107660.0,107650.0,0.19916]
[1750087418434,0.31004605,107660.0,107650.0,0.40817582]
[1750087418692,0.31004605,107660.0,107650.0,0.44335376]
[1750087418693,0.88299325,107660.0,107650.0,0.44335376]
[1750087418911,1.11744506,107670.0,107660.0,0.19970842]
[1750087419123,1.21368682,107670.0,107660.0,0.00465]
[1750087419347,1.21368682,107670.0,107660.0,0.19970851]
[1750087419547,1.22303355,107670.0,107660.0,0.00465]
[1750087419757,1.22303355,107670.0,107660.0,0.19042001]
[1750087419971,1.22303355,107670.0,107660.0,0.19970833]
[1750087420628,1.22303355,107670.0,107660.0,0.21670833]
[1750087420856,1.22303355,107670.0,107660.0,0.20742001]
[1750087421066,1.213746,107670.0,107660.0,0.19142001]
[1750087421280,1.213746,107670.0,107660.0,0.19242001]
[1750087421497,1.213746,107670.0,107660.0,0.39586851]
[1750087421972,1.213746,107670.0,107660.0,0.20081]
[1750087422190,1.229546,107670.0,107660.0,0.20081]
[1750087422949,1.229546,107670.0,107660.0,0.38658001]
[1750087423170,1.213746,107670.0,107660.0,0.39586842]
[1750087423666,1.213746,107670.0,107660.0,0.38658001]
[1750087423883,1.213746,107670.0,107660.0,0.20081]
[1750087424106,1.81165075,107670.0,107660.0,0.19616]
[1750087424341,1.83269075,107670.0,107660.0,0.19616]
[1750087424755,1.83269075,107670.0,107660.0,0.002]
[1750087424988,1.83269075,107670.0,107660.0,0.04248]
[1750087426305,1.92548958,107670.0,107660.0,0.04248]
[1750087426510,1.83269075,107670.0,107660.0,0.04248]
[1750087427379,1.98637075,107670.0,107660.0,0.04248]
[1750087428264,0.84946925,107670.0,107660.0,0.04248]
[1750087428478,2.01427875,107670.0,107660.0,0.04248]
[1750087428699,1.86059875,107670.0,107660.0,0.04248]
[1750087429347,1.83955875,107670.0,107660.0,0.04248]
[1750087429766,1.257154,107670.0,107660.0,0.04248]
[1750087429991,1.257154,107670.0,107660.0,0.04713]
[1750087430404,1.83955875,107670.0,107660.0,0.04713]
[1750087431250,1.257154,107670.0,107660.0,0.04713]
[1750087432080,1.229246,107670.0,107660.0,0.04713]
[1750087432498,1.81165075,107670.0,107660.0,0.04713]
[1750087432706,1.81165075,107670.0,107660.0,0.04248]
[1750087435300,1.23597224,107670.0,107660.0,0.04248]
[1750087435536,0.80534966,107680.0,107670.0,0.18575276]
[1750087435829,0.90159142,107680.0,107670.0,0.23722768]
[1750087436044,1.24159142,107680.0,107670.0,0.23722768]
[1750087436263,0.34,107680.0,107670.0,0.39090768]
[1750087436484,0.95026403,107680.0,107670.0,0.44482435]
[1750087437153,0.95126403,107680.0,107670.0,0.44482435]
[1750087437362,0.95126403,107680.0,107670.0,0.44947435]
[1750087437563,0.96055002,107680.0,107670.0,0.44947435]
[1750087437782,0.9698367,107680.0,107670.0,0.44947435]
[1750087437996,1.15557221,107680.0,107670.0,0.44947435]
[1750087438207,1.14628622,107680.0,107670.0,0.44018732]
[1750087438430,1.14628622,107680.0,107670.0,0.4309002]
[1750087438650,1.14628622,107680.0,107670.0,0.15833]
[1750087438651,1.11842694,107680.0,107670.0,0.15833]
[1750087438862,1.2297687,107680.0,107670.0,0.00465]
[1750087439067,1.2146687,107680.0,107670.0,0.19881]
[1750087439284,1.2146687,107680.0,107670.0,0.19416]
[1750087439485,1.2296687,107680.0,107670.0,0.19416]
[1750087440108,1.2296687,107680.0,107670.0,0.19872]
[1750087440358,1.2296687,107680.0,107670.0,0.04504]
[1750087441071,1.2296687,107680.0,107670.0,0.04048]
[1750087441727,0.19504022,107670.0,107660.0,0.0312]
[1750087441947,0.22292279,107660.0,107650.0,0.38601525]
[1750087442184,0.80532754,107660.0,107650.0,0.43578452]
[1750087442384,0.22292279,107660.0,107650.0,0.43578452]
[1750087442594,0.80532754,107660.0,107650.0,0.24070936]
[1750087442807,0.80532754,107660.0,107650.0,0.07774]
[1750087443018,0.7867515,107660.0,107650.0,0.23142]
[1750087443248,0.7867515,107660.0,107650.0,0.21782]
[1750087443471,0.8029515,107660.0,107650.0,0.19716]
[1750087443918,0.8029515,107660.0,107650.0,0.003]
[1750087444137,1.25946326,107660.0,107650.0,0.04348]
[1750087444607,1.41314326,107660.0,107650.0,0.04348]
[1750087444808,2.01772782,107660.0,107650.0,0.04344]
[1750087445012,1.43532307,107660.0,107650.0,0.04344]
[1750087445679,1.43732307,107660.0,107650.0,0.04344]
[1750087445925,1.43732307,107660.0,107650.0,0.04044]
[1750087446135,1.53147229,107660.0,107650.0,0.04044]
[1750087446349,1.53447229,107660.0,107650.0,0.04044]
[1750087446550,1.53147229,107660.0,107650.0,0.04044]
[1750087446763,1.53847229,107660.0,107650.0,0.04044]
[1750087447437,1.54047229,107660.0,107650.0,0.04044]
[1750087447856,1.56838529,107660.0,107650.0,0.04044]
[1750087448281,1.47223607,107660.0,107650.0,0.04044]
[1750087449415,1.31388607,107660.0,107650.0,0.04044]
[1750087449630,1.45005626,107660.0,107650.0,0.04044]
[1750087450285,0.70930151,107660.0,107650.0,0.04044]
[1750087450518,1.25990626,107660.0,107650.0,0.045]
[1750087451210,1.22999326,107660.0,107650.0,0.045]
[1750087451631,1.23199326,107660.0,107650.0,0.045]
[1750087452078,0.64958851,107660.0,107650.0,0.045]
[1750087452292,1.22499326,107660.0,107650.0,0.045]
[1750087452521,1.22499326,107660.0,107650.0,0.04044]
[1750087452733,1.28202956,107660.0,107650.0,0.04044]
[1750087452946,1.22999326,107660.0,107650.0,0.04044]
[1750087454041,1.22999326,107660.0,107650.0,0.22622727]
[1750087454258,1.22999308,107660.0,107650.0,0.25862727]
[1750087454475,1.22999308,107660.0,107650.0,0.26791663]
[1750087454916,1.22070484,107660.0,107650.0,0.05644]
[1750087455145,1.22070484,107660.0,107650.0,0.04044]
[1750087456010,0.19507646,107650.0,107640.0,0.0152]
[1750087456262,0.78677031,107650.0,107640.0,0.24153169]
[1750087456482,0.78677031,107650.0,107640.0,0.26011205]
[1750087456688,0.78677031,107650.0,107640.0,0.33374022]
[1750087457123,0.78977031,107650.0,107640.0,0.35803018]
[1750087457340,0.79177031,107650.0,107640.0,0.36259018]
[1750087457570,0.79177031,107650.0,107640.0,0.37187997]
[1750087458571,0.81034894,107650.0,107640.0,0.37187945]